bitfinex-derivatives/quotes_SOLF0:USTF0_20260127
["timestamp","ask_amount","ask_price","bid_price","bid_amount"]
[1769494995617,5.69874853,124.57,124.53,3.41047537]
[1769494996317,5.69874853,124.57,124.52,7.2367]
[1769494996524,2.36645875,124.54,124.5,10.64807537]
[1769494997819,5.69874853,124.53,124.48,10.64907537]
[1769494998027,5.69874853,124.53,124.48,3.41047537]
[1769494998620,2.36645875,124.52,124.48,3.41047537]
[1769495001431,5.69874853,124.53,124.48,3.41047537]
[1769495003633,3.37919879,124.52,124.48,3.41047537]
[1769495004335,5.74565754,124.52,124.48,3.41047537]
[1769495007034,3.37919879,124.52,124.48,3.41047537]
[1769495010139,3.37919879,124.52,124.47,7.2394]
[1769495013544,3.37919879,124.52,124.47,10.6963001]
[1769495022740,3.37919879,124.52,124.47,13.06275885]
[1769495034658,3.37919879,124.52,124.48,3.4103311]
[1769495043966,3.37919879,124.52,124.48,5.77678985]
[1769495044169,3.37919879,124.52,124.48,3.4103311]
[1769495047564,5.95778967,124.53,124.46,3.4103311]
[1769495047771,3.21227052,124.57,124.52,3.4103311]
[1769495048167,3.21227052,124.57,124.53,2.36645875]
[1769495048864,9.18668289,124.57,124.53,2.36645875]
[1769495050266,3.21227052,124.57,124.53,2.36645875]
[1769495052767,3.21227052,124.57,124.52,5.77678985]
[1769495054466,3.21227052,124.57,124.53,3.4103311]
[1769495062389,3.21227052,124.57,124.53,5.77611537]
[1769495067588,3.21227052,124.57,124.53,3.4103311]
[1769495070090,3.21227052,124.57,124.51,2.36578427]
[1769495070291,3.21227052,124.57,124.51,5.57381664]
[1769495073696,3.21227052,124.57,124.52,3.20803237]
[1769495082713,5.57805479,124.57,124.52,3.20803237]
[1769495091822,3.21227052,124.57,124.52,3.20803237]
[1769495095416,5.78117052,124.61,124.54,3.38127474]
[1769495095620,3.41538625,124.6,124.54,3.38127474]
[1769495097020,3.41538625,124.6,124.54,10.61677474]
[1769495098931,5.78117052,124.6,124.54,10.61677474]
[1769495101230,3.41538625,124.6,124.54,10.61677474]
[1769495101930,3.41538625,124.6,124.54,12.98255901]
[1769495104334,3.41538625,124.6,124.55,3.38127474]
[1769495107428,2.36578427,124.56,124.52,3.38127474]
[1769495108134,5.78117052,124.57,124.52,3.38127474]
[1769495109637,2.36578427,124.56,124.52,3.38127474]
[1769495111337,5.78117052,124.57,124.52,3.38127474]
[1769495112742,2.36578427,124.56,124.52,3.38127474]
[1769495114440,5.78117052,124.57,124.52,3.38127474]
[1769495117540,5.78174537,124.57,124.52,3.38127474]
[1769495117741,5.78174537,124.57,124.52,10.61797474]
[1769495122247,3.41538625,124.57,124.53,3.43666485]
[1769495125850,3.40464742,124.59,124.54,3.45710873]
[1769495126956,3.40464742,124.59,124.54,10.69260873]
[1769495133754,3.40464742,124.59,124.54,7.2355]
[1769495133959,3.40464742,124.57,124.52,7.2364]
[1769495134258,5.77100654,124.57,124.52,7.2364]
[1769495135355,3.40464742,124.56,124.51,3.45710873]
[1769495135861,5.77100654,124.56,124.51,3.45710873]
[1769495136061,112.4965,124.61,124.49,3.46306294]
[1769495136062,3.22846513,124.54,124.49,3.46306294]
[1769495136556,5.59482425,124.54,124.49,3.46306294]
[1769495137865,5.59482425,124.54,124.49,10.70156294]
[1769495141675,3.22846513,124.54,124.49,10.70156294]
[1769495144774,5.59482425,124.54,124.49,10.70156294]
[1769495147379,5.59482425,124.52,124.47,238.20750076]
[1769495147571,2.36635912,124.5,124.47,230.96800076]
[1769495149268,5.59482425,124.51,124.47,230.96800076]
[1769495150779,3.22846513,124.51,124.47,230.96800076]
[1769495154480,3.22846513,124.51,124.47,3.46306294]
[1769495154686,5.59482425,124.51,124.46,10.70421364]
[1769495154890,5.59482425,124.51,124.46,3.46411364]
[1769495156885,3.22846513,124.51,124.46,3.46411364]
[1769495165093,3.22846513,124.51,124.46,10.70431364]
[1769495189416,3.37597907,124.5,124.44,10.64053582]
[1769495189611,5.74446375,124.5,124.44,10.64053582]
[1769495190315,5.74446375,124.5,124.45,3.39953582]
[1769495190316,3.37597907,124.5,124.45,3.39953582]
[1769495193616,5.74446375,124.5,124.45,3.39953582]
[1769495194417,3.37597907,124.49,124.44,7.241]
[1769495194711,3.37597907,124.49,124.44,10.64053582]
[1769495196512,3.37597907,124.49,124.44,7.241]
[1769495197012,3.37597907,124.49,124.43,3.39953582]
[1769495197409,3.37597907,124.49,124.43,10.64143582]
[1769495199818,3.37597907,124.49,124.43,13.0099205]
[1769495201119,5.74446375,124.49,124.43,13.0099205]
[1769495201724,5.74446375,124.49,124.43,10.64143582]
[1769495207022,5.74446375,124.48,124.43,3.39953582]
[1769495207725,3.37597907,124.47,124.43,3.39953582]
[1769495226237,3.37597907,124.47,124.41,13.04263209]
[1769495226739,3.37597907,124.47,124.42,10.67404741]
[1769495227237,5.74446375,124.47,124.42,10.67404741]
[1769495229638,3.37597907,124.47,124.42,10.67404741]
[1769495234053,3.37597907,124.47,124.42,3.43154741]
[1769495235550,3.47621656,124.46,124.42,3.43154741]
[1769495235855,5.84470124,124.46,124.4,209.71571405]
[1769495236149,3.47621656,124.46,124.41,3.43154741]
[1769495238658,5.84470124,124.46,124.41,3.43154741]
[1769495240554,5.84470124,124.45,124.4,199.04086664]
[1769495241650,5.84758006,124.45,124.4,199.04086664]
[1769495241958,13.08838006,124.45,124.4,199.04086664]
[1769495243657,3.26755761,124.44,124.4,199.04086664]
[1769495244059,3.26755761,124.44,124.39,3.43154741]
[1769495245561,5.63892111,124.44,124.39,3.43154741]
[1769495247364,3.26755761,124.44,124.39,3.43154741]
[1769495252869,112.6121,124.48,124.41,3.369553]
[1769495252870,3.26755761,124.46,124.41,3.369553]
[1769495253072,7.2401,124.47,124.41,3.369553]
[1769495253663,10.50765761,124.47,124.41,3.369553]
[1769495255973,3.26755761,124.46,124.41,3.369553]
[1769495264477,10.50785761,124.46,124.41,3.369553]
[1769495264780,3.26755761,124.45,124.41,3.369553]
[1769495265080,3.26755761,124.45,124.39,12.9852165]
[1769495267476,3.26755761,124.45,124.39,10.613853]
[1769495267780,5.63892111,124.45,124.39,10.613853]
[1769495273686,5.63892111,124.45,124.4,3.41973164]
[1769495281788,3.41660111,124.44,124.4,3.41973164]
[1769495282089,3.41660111,124.44,124.39,7.2443]
[1769495282290,5.78796461,124.44,124.38,221.7191516]
[1769495284985,5.78796461,124.43,124.38,214.4742516]
[1769495285891,13.03006461,124.43,124.38,3.41973164]
[1769495286091,2.3713635,124.41,124.36,3.41973164]
[1769495286682,5.78796461,124.41,124.36,3.41973164]
[1769495287691,3.41660111,124.41,124.36,3.41973164]
[1769495299297,3.41660111,124.39,124.34,3.41973164]
[1769495299702,5.78796461,124.39,124.34,3.41973164]
[1769495300401,3.41660111,124.39,124.34,3.41973164]
[1769495301199,5.78796461,124.39,124.34,3.41973164]
[1769495303809,5.79030695,124.39,124.34,3.41973164]
[1769495305010,3.44261728,124.38,124.34,3.41973164]
[1769495315708,5.81632312,124.38,124.32,10.63321138]
[1769495316508,5.81632312,124.36,124.3,3.38501138]
[1769495316816,3.44261728,124.35,124.3,3.38501138]
[1769495317821,5.81632312,124.37,124.31,3.38501138]
[1769495318313,3.44261728,124.39,124.33,3.38501138]
[1769495318514,3.44261728,124.39,124.34,3.38501138]
[1769495318712,3.44261728,124.37,124.32,3.38501138]
[1769495318914,3.44261728,124.36,124.32,3.38501138]
[1769495320420,3.44261728,124.36,124.3,3.38501138]
[1769495320918,5.81632312,124.36,124.3,3.38501138]
[1769495321318,5.81632312,124.36,124.3,10.63451138]
[1769495321821,5.81632312,124.36,124.31,3.38501138]
[1769495322817,3.44261728,124.36,124.31,3.38501138]
[1769495333825,3.44261728,124.36,124.3,7.2495]
[1769495334026,3.44261728,124.36,124.3,10.71206649]
[1769495335825,3.44261728,124.36,124.3,13.08577233]
[1769495336829,3.48610552,124.37,124.32,3.46256649]
[1769495337427,3.48610552,124.37,124.31,7.2489]
[1769495337726,3.48610552,124.36,124.31,7.2489]
[1769495346439,3.48610552,124.36,124.31,10.71146649]
[1769495351240,2.37370584,124.37,124.32,3.46256649]
[1769495351441,5.85981136,124.37,124.32,3.46256649]
[1769495352340,3.48610552,124.37,124.32,3.46256649]
[1769495358545,5.85981136,124.37,124.32,3.46256649]
[1769495360642,3.48610552,124.36,124.32,3.46256649]
[1769495360843,3.48610552,124.36,124.29,2.37370584]
[1769495361138,3.48610552,124.36,124.3,10.71176649]
[1769495361345,5.85981136,124.36,124.3,10.71176649]
[1769495361545,5.9174888,124.34,124.28,3.46205786]
[1769495362748,2.37370584,124.33,124.28,3.46205786]
[1769495363543,2.37573725,124.33,124.28,3.46205786]
[1769495364547,5.89350417,124.33,124.28,3.46205786]
[1769495366844,3.51776692,124.33,124.28,3.46205786]
[1769495368949,3.51776692,124.35,124.29,3.46816307]
[1769495369349,9.48333073,124.35,124.29,3.46816307]
[1769495370756,5.96556381,124.35,124.3,3.46816307]
[1769495370953,3.51776692,124.37,124.32,3.46816307]
[1769495371152,9.48409044,124.37,124.32,3.46816307]
[1769495373252,11.85982769,124.37,124.32,3.46816307]
[1769495373459,5.89350417,124.37,124.32,3.46816307]
[1769495376557,2.37573725,124.37,124.32,3.46816307]
[1769495377055,5.9654165,124.37,124.32,3.46816307]
[1769495377250,9.48318342,124.37,124.32,3.46816307]
[1769495380157,11.85892067,124.37,124.32,3.46816307]
[1769495380360,5.89350417,124.37,124.32,3.46816307]
[1769495382360,5.96502711,124.36,124.32,3.46816307]
[1769495385660,11.85853128,124.36,124.3,3.46816307]
[1769495385962,5.89350417,124.36,124.3,3.46816307]
[1769495395963,2.37573725,124.36,124.3,3.46816307]
[1769495396168,5.70164499,124.34,124.28,3.2188052]
[1769495399174,2.37573725,124.33,124.28,3.2188052]
[1769495401182,5.70164499,124.33,124.28,3.2188052]
[1769495403077,3.32590774,124.31,124.25,10.4707052]
[1769495403279,3.32590774,124.31,124.26,3.2188052]
[1769495403467,12.94954499,124.33,124.26,3.2188052]
[1769495403875,3.32590774,124.32,124.26,3.2188052]
[1769495404172,3.32590774,124.32,124.26,5.59454245]
[1769495404369,3.32590774,124.32,124.27,3.2188052]
[1769495419790,5.70164499,124.32,124.27,3.2188052]
[1769495419992,3.32590774,124.32,124.27,3.2188052]
[1769495423900,5.7015727,124.32,124.27,3.2188052]
[1769495424089,410.8798,124.36,124.25,3.46463412]
[1769495424090,3.50066655,124.3,124.25,3.46463412]
[1769495424897,3.50066655,124.29,124.23,5.84029908]
[1769495425595,3.50066655,124.29,124.23,13.09389908]
[1769495425995,5.87633151,124.29,124.23,10.71823412]
[1769495427294,3.50066655,124.28,124.23,3.46463412]
[1769495427499,3.50066655,124.27,124.23,3.46463412]
[1769495431988,13.12663151,124.29,124.23,3.46463412]
[1769495432195,112.7563,124.32,124.19,434.108]
[1769495432196,13.12563151,124.31,124.25,3.46463412]
[1769495432995,3.50066655,124.3,124.25,3.46463412]
[1769495437605,3.50066655,124.29,124.24,3.46463412]
[1769495443006,10.75086655,124.29,124.24,3.46463412]
[1769495446908,3.50066655,124.29,124.24,3.46463412]
[1769495448404,3.50066655,124.28,124.22,3.46463412]
[1769495448609,3.50066655,124.27,124.22,3.46463412]
[1769495453914,3.4192674,124.26,124.21,7.2545]
[1769495454111,3.4192674,124.25,124.2,3.46619023]
[1769495454711,3.4192674,124.26,124.21,3.46619023]
[1769495456216,3.4192674,124.26,124.21,5.84185519]
[1769495456413,3.4192674,124.26,124.21,3.46619023]
[1769495458017,3.4192674,124.26,124.19,2.37566496]
[1769495458018,3.4192674,124.25,124.19,3.46619023]
[1769495458822,5.79493236,124.25,124.19,3.46619023]
[1769495459920,3.4192674,124.24,124.19,3.46619023]
[1769495460324,5.79493236,124.24,124.19,3.46619023]
[1769495463529,3.4192674,124.21,124.15,3.46619023]
[1769495463720,5.79493236,124.21,124.15,3.46619023]
[1769495463919,5.79493236,124.21,124.15,10.72439023]
[1769495464427,5.79493236,124.21,124.15,13.10005519]
[1769495464724,3.4192674,124.21,124.15,13.10005519]
[1769495464926,2.37566496,124.2,124.16,3.46619023]
[1769495465130,5.79493236,124.21,124.16,3.46619023]
[1769495465323,3.4192674,124.2,124.13,3.46619023]
[1769495465628,5.79493236,124.2,124.14,3.46619023]
[1769495466133,5.79493236,124.2,124.14,10.72499023]
[1769495466926,3.4192674,124.19,124.14,10.72499023]
[1769495468632,3.4192674,124.19,124.14,3.46619023]
[1769495469129,5.79493236,124.19,124.14,3.46619023]
[1769495470034,3.4192674,124.19,124.14,3.46619023]
[1769495476942,3.4192674,124.21,124.15,5.84185519]
[1769495477145,3.4192674,124.21,124.16,3.46619023]
[1769495477640,3.4192674,124.19,124.11,3.46619023]
[1769495477841,3.4192674,124.18,124.13,3.46619023]
[1769495482847,3.4192674,124.18,124.11,7.2605]
[1769495483144,3.21458963,124.17,124.11,12.92227235]
[1769495483338,3.21458963,124.17,124.12,3.28610739]
[1769495484443,3.21458963,124.17,124.12,5.66177235]
[1769495485143,3.21458963,124.17,124.12,3.28610739]
[1769495486647,3.21458963,124.16,124.11,3.28610739]
[1769495487842,3.21458963,124.16,124.11,5.66729405]
[1769495489251,3.21458963,124.16,124.11,3.28610739]
[1769495490948,3.21458963,124.16,124.11,10.54670739]
[1769495492851,3.21458963,124.16,124.11,12.92789405]
[1769495493058,3.21458963,124.17,124.12,3.28610739]
[1769495495350,3.21458963,124.19,124.14,3.28610739]
[1769495495952,3.21458963,124.21,124.16,3.28610739]
[1769495496451,3.21458963,124.21,124.14,5.66729405]
[1769495496452,3.21458963,124.2,124.14,5.66729405]
[1769495497057,3.21458963,124.2,124.15,3.28610739]
[1769495497744,5.59577629,124.22,124.16,3.28610739]
[1769495498148,3.21458963,124.22,124.16,3.28610739]
[1769495498556,2.38118666,124.23,124.16,3.28610739]
[1769495498557,7.2522,124.26,124.17,5.66729405]
[1769495498760,5.59577629,124.24,124.18,3.28610739]
[1769495498958,3.21458963,124.24,124.18,3.28610739]
[1769495500045,3.21458963,124.24,124.19,5.66729405]
[1769495506765,5.59577629,124.24,124.19,3.28610739]
[1769495507362,3.21458963,124.24,124.19,3.28610739]
[1769495513575,3.21458963,124.24,124.19,5.66729405]
[1769495513775,3.21458963,124.24,124.2,3.20447436]
[1769495522879,3.21458963,124.24,124.18,7.2564]
[1769495523082,3.2172326,124.2,124.15,3.20447436]
[1769495523281,5.59841926,124.2,124.15,3.20447436]
[1769495523985,3.2172326,124.2,124.15,10.46277436]
[1769495525181,3.2172326,124.2,124.16,3.20447436]
[1769495527883,3.2172326,124.2,124.15,7.2583]
[1769495528191,3.2172326,124.2,124.15,10.46277436]
[1769495531893,5.59841926,124.2,124.15,10.46277436]
[1769495535991,3.2172326,124.2,124.15,10.46277436]
[1769495537789,5.59841926,124.2,124.15,10.46277436]
[1769495538797,3.2172326,124.2,124.15,10.46277436]
[1769495538987,5.59841926,124.2,124.15,10.46277436]
[1769495542099,3.2172326,124.2,124.15,10.46277436]
[1769495543796,5.59841926,124.2,124.15,10.46277436]
[1769495545000,3.2172326,124.2,124.16,3.3913875]
[1769495545201,5.76360135,124.24,124.18,3.3913875]
[1769495545502,9.32249378,124.23,124.18,3.3913875]
[1769495545902,3.38241469,124.22,124.18,3.3913875]
[1769495548404,3.38241469,124.24,124.18,5.77037724]
[1769495548905,3.38241469,124.24,124.19,5.77037724]
[1769495549103,3.38241469,124.24,124.2,5.77037724]
[1769495549806,3.38241469,124.24,124.2,3.3913875]
[1769495550905,10.63471469,124.26,124.2,3.3913875]
[1769495551301,3.38241469,124.25,124.2,3.3913875]
[1769495562813,5.76140443,124.25,124.2,3.3913875]
[1769495564019,3.38241469,124.24,124.2,3.3913875]
[1769495570725,3.38241469,124.24,124.19,9.63488974]
[1769495570726,3.38241469,124.24,124.19,7.2559]
[1769495571535,3.38241469,124.24,124.19,3.3913875]
[1769495573532,3.38241469,124.24,124.18,13.09835867]
[1769495573833,12.90374034,124.26,124.2,3.46296893]
[1769495574032,3.2724506,124.25,124.2,3.46296893]
[1769495578833,3.2724506,124.25,124.18,3.46296893]
[1769495579042,3.2724506,124.23,124.17,3.46296893]
[1769495579741,3.2724506,124.23,124.19,3.46296893]
[1769495583741,3.2724506,124.25,124.2,3.46296893]
[1769495583952,5.93994035,124.26,124.21,5.84195867]
[1769495584447,5.93994035,124.26,124.22,3.46296893]
[1769495585139,3.2724506,124.27,124.22,3.46296893]
[1769495585539,9.21477767,124.27,124.22,3.46296893]
[1769495593057,9.21477767,124.27,124.22,5.84195867]
[1769495593262,3.2724506,124.27,124.22,5.84195867]
[1769495593961,3.2724506,124.27,124.22,3.46296893]
[1769495593962,9.22407072,124.27,124.22,3.46296893]
[1769495597261,5.65144034,124.26,124.2,3.46296893]
[1769495597457,3.2724506,124.25,124.2,3.46296893]
[1769495597661,3.2724506,124.24,124.18,5.84195867]
[1769495598161,3.2724506,124.24,124.19,10.71886893]
[1769495600070,3.2724506,124.24,124.19,3.46296893]
[1769495600368,3.2724506,124.24,124.18,2.37898974]
[1769495600568,3.2724506,124.24,124.18,5.84195867]
[1769495600768,5.65144034,124.24,124.18,3.46296893]
[1769495601570,3.30975818,124.23,124.18,3.46296893]
[1769495607066,3.30975818,124.23,124.18,10.71936893]
[1769495608769,3.50237309,124.22,124.18,7.2564]
[1769495609263,5.88128646,124.22,124.18,7.2564]
[1769495612267,2.37891337,124.22,124.18,10.66223954]
[1769495613173,2.37891337,124.23,124.18,10.66223954]
[1769495613469,5.88128646,124.23,124.18,10.66223954]
[1769495614574,3.50237309,124.23,124.19,3.40583954]
[1769495617175,13.13378646,124.25,124.19,3.40583954]
[1769495619774,10.75487309,124.25,124.19,3.40583954]
[1769495621280,3.50237309,124.24,124.19,3.40583954]
[1769495621476,5.88128646,124.24,124.19,3.40583954]
[1769495621779,11.85156819,124.24,124.19,3.40583954]
[1769495621975,5.88128646,124.24,124.19,3.40583954]
[1769495624379,3.50237309,124.24,124.19,3.40583954]
[1769495624580,9.4710307,124.24,124.19,3.40583954]
[1769495625083,3.50237309,124.24,124.19,10.66183954]
[1769495626283,3.50237309,124.23,124.17,13.04145291]
[1769495626679,3.50237309,124.23,124.18,3.40583954]
[1769495627679,3.50237309,124.23,124.18,10.66233954]
[1769495631074,3.50237309,124.23,124.19,7.256]
[1769495631269,5.88128646,124.25,124.2,3.40583954]
[1769495631470,3.50237309,124.25,124.2,3.40583954]
[1769495631680,9.47316065,124.25,124.2,3.40583954]
[1769495631877,3.50237309,124.24,124.2,3.40583954]
[1769495632076,3.50237309,124.24,124.19,7.256]
[1769495632474,3.50237309,124.24,124.19,10.49128887]
[1769495632680,3.50237309,124.24,124.19,12.87020224]
[1769495638184,3.50237309,124.24,124.19,10.49128887]
[1769495638484,9.47316065,124.24,124.19,10.49128887]
[1769495639786,3.25261242,124.22,124.17,7.2569]
[1769495640077,3.25261242,124.22,124.17,10.49218887]
[1769495640779,3.25261242,124.23,124.18,3.23528887]
[1769495641478,9.22605206,124.23,124.18,3.23528887]
[1769495641875,11.60496543,124.23,124.18,3.23528887]
[1769495642074,5.63152579,124.23,124.18,3.23528887]
[1769495644090,3.25261242,124.22,124.18,3.23528887]
[1769495652596,5.63152579,124.22,124.17,7.2569]
[1769495652894,3.25261242,124.21,124.16,3.23528887]
[1769495653093,3.25261242,124.21,124.15,2.37891337]
[1769495653094,11.60208868,124.21,124.14,305.03139131]
[1769495653392,5.63152579,124.2,124.14,302.65247794]
[1769495653890,5.63152579,124.2,124.15,7.2582]
[1769495654987,5.63152579,124.19,124.14,302.65247794]
[1769495656301,3.25261242,124.19,124.14,302.65247794]
[1769495656483,3.25261242,124.19,124.14,299.41718907]
[1769495656484,3.25261242,124.18,124.14,299.41718907]
[1769495660701,3.25261242,124.18,124.12,10.49528887]
[1769495660891,3.25261242,124.16,124.1,12.87490224]
[1769495661090,3.25261242,124.16,124.11,3.36166539]
[1769495661894,12.99392465,124.18,124.12,3.36166539]
[1769495662290,3.22692738,124.17,124.12,3.36166539]
[1769495667400,3.22692738,124.19,124.13,5.75541561]
[1769495667591,3.22692738,124.21,124.15,3.37650224]
[1769495667897,3.22692738,124.21,124.15,2.3807647]
[1769495668199,5.60769208,124.2,124.14,3.37650224]
[1769495670299,3.22692738,124.2,124.14,5.75726694]
[1769495672904,3.22692738,124.19,124.14,3.37650224]
[1769495673111,3.22692738,124.18,124.12,5.75726694]
[1769495673304,5.60769208,124.18,124.12,3.37650224]
[1769495676511,3.22692738,124.18,124.12,5.75726694]
[1769495676712,3.22692738,124.18,124.12,3.37650224]
[1769495678717,10.48352738,124.18,124.12,5.75726694]
[1769495680112,3.22692738,124.17,124.12,5.75726694]
[1769495681617,3.22692738,124.17,124.12,3.37650224]
[1769495683121,3.22692738,124.17,124.12,5.75726694]
[1769495683722,3.22692738,124.17,124.12,3.37650224]
[1769495683918,3.22692738,124.17,124.12,10.63650224]
[1769495687126,5.60769208,124.16,124.1,3.37650224]
[1769495689025,5.60769208,124.16,124.1,10.63760224]
[1769495690322,3.22692738,124.16,124.1,10.63760224]
[1769495691631,3.22692738,124.16,124.1,13.01836694]
[1769495692526,5.60769208,124.16,124.1,10.63760224]
[1769495692928,3.53367913,124.15,124.1,3.37650224]
[1769495694828,5.91444383,124.15,124.1,3.37650224]
[1769495695125,3.53367913,124.15,124.1,10.63770224]
[1769495695730,3.53367913,124.15,124.1,13.01846694]
[1769495697230,3.53367913,124.15,124.1,3.37650224]
[1769495705134,3.53367913,124.15,124.1,5.75726694]
[1769495706531,3.53367913,124.17,124.11,5.80377065]
[1769495706740,9.46935874,124.19,124.14,3.42300595]
[1769495707240,3.53367913,124.19,124.14,3.42300595]
[1769495711246,3.53367913,124.19,124.14,10.68170595]
[1769495711544,3.53367913,124.19,124.14,13.06247065]
[1769495713643,3.53367913,124.19,124.14,5.80377065]
[1769495713842,9.6357647,124.21,124.16,5.80377065]
[1769495713843,3.53367913,124.21,124.16,5.80377065]
[1769495714247,3.53367913,124.23,124.17,5.80377065]
[1769495715947,13.16654383,124.26,124.2,5.80377065]
[1769495716148,3.53367913,124.25,124.2,5.80377065]
[1769495716349,3.53367913,124.25,124.2,3.42300595]
[1769495720647,3.53367913,124.25,124.2,5.80377065]
[1769495726953,3.53367913,124.25,124.21,2.3807647]
[1769495727248,3.49358149,124.23,124.17,2.3807647]
[1769495727753,3.49358149,124.23,124.17,2.37946523]
[1769495728447,5.87304672,124.23,124.16,5.84322069]
[1769495729053,13.12674672,124.23,124.16,5.84322069]
[1769495729552,3.49358149,124.23,124.17,5.84322069]
[1769495729757,3.49358149,124.23,124.18,2.37946523]
[1769495730856,10.74648149,124.25,124.2,2.37946523]
[1769495731544,10.74648149,124.25,124.19,5.84322069]
[1769495731855,3.49358149,124.24,124.19,5.84322069]
[1769495733558,3.49358149,124.26,124.2,5.84322069]
[1769495735147,5.87304672,124.26,124.2,5.84322069]
[1769495735352,3.49358149,124.25,124.2,5.84322069]
[1769495735556,3.49358149,124.25,124.2,3.46375546]
[1769495736256,5.87304672,124.25,124.2,3.46375546]
[1769495736871,3.49358149,124.25,124.2,5.84322069]
[1769495737155,5.87304672,124.25,124.2,3.46375546]
[1769495739761,3.49358149,124.25,124.2,3.46375546]
[1769495744166,3.49358149,124.24,124.18,10.72015546]
[1769495744367,3.49358149,124.24,124.18,13.09962069]
[1769495744757,3.49358149,124.24,124.19,3.46375546]
[1769495749057,5.87304672,124.26,124.2,3.46375546]
[1769495749565,5.87304672,124.25,124.2,3.46375546]
[1769495750457,3.49358149,124.24,124.2,3.46375546]
[1769495753175,13.15131588,124.26,124.2,3.46375546]
[1769495753468,3.51995065,124.25,124.2,3.46375546]
[1769495754964,3.51995065,124.25,124.21,3.43322532]
[1769495755259,5.89941588,124.27,124.21,3.43322532]
[1769495755771,13.15071588,124.27,124.21,3.43322532]
[1769495755974,3.51995065,124.26,124.21,3.43322532]
[1769495756173,9.47149952,124.26,124.21,3.43322532]
[1769495756665,5.89941588,124.26,124.21,3.43322532]
[1769495760477,3.51995065,124.26,124.21,3.43322532]
[1769495760680,9.48632298,124.26,124.21,3.43322532]
[1769495761673,3.51995065,124.25,124.19,2.37946523]
[1769495761876,11.86578821,124.25,124.19,3.43322532]
[1769495762073,5.89941588,124.25,124.19,3.43322532]
[1769495762273,3.51995065,124.25,124.2,3.43322532]
[1769495762580,9.48558561,124.25,124.2,3.43322532]
[1769495763284,3.51995065,124.25,124.2,3.43322532]
[1769495763479,9.4842149,124.25,124.2,3.43322532]
[1769495764483,5.96426425,124.25,124.19,9.63536523]
[1769495765485,5.96426425,124.25,124.19,7.2559]
[1769495767491,8.34372948,124.25,124.17,7.2566]
[1769495767787,2.37946523,124.24,124.17,9.63606523]
[1769495768584,2.37946523,124.24,124.18,7.2565]
[1769495770578,8.34372948,124.25,124.18,7.2565]
[1769495771386,2.37946523,124.24,124.18,7.2565]
[1769495773081,8.34372948,124.24,124.18,7.2565]
[1769495778990,8.34372948,124.24,124.19,7.256]
[1769495782192,2.37946523,124.23,124.17,7.2566]
[1769495784089,2.37946523,124.23,124.18,7.2564]
[1769495786693,8.34372948,124.24,124.18,7.2564]
[1769495789705,8.34326505,124.24,124.18,7.2564]
[1769495792810,5.96426425,124.24,124.18,9.6354008]
[1769495793814,5.96426425,124.24,124.18,7.2564]
[1769495794312,8.34326505,124.24,124.18,7.2564]
[1769495794514,8.34326505,124.24,124.14,112.9142]
[1769495794515,2.3790008,124.23,124.16,2.3790008]
[1769495794710,8.34326505,124.23,124.15,2.3790008]
[1769495795013,8.34326505,124.23,124.16,2.3790008]
[1769495795215,2.3790008,124.22,124.17,7.2571]
[1769495795414,8.34326505,124.22,124.17,7.2571]
[1769495798217,5.96426425,124.22,124.17,7.2571]
[1769495801918,5.96426425,124.22,124.17,7.2571]
[1769495802115,2.3790008,124.23,124.17,7.2571]
[1769495802818,8.34285358,124.23,124.17,7.2571]
[1769495810631,8.34285358,124.23,124.16,9.6367008]
[1769495811229,15.59645358,124.23,124.16,9.6367008]
[1769495811431,5.96385278,124.22,124.16,9.6367008]
[1769495811629,2.3790008,124.21,124.11,112.9351]
[1769495811829,2.3790008,124.2,124.13,2.3790008]
[1769495812432,8.34285358,124.2,124.13,2.3790008]
[1769495812834,8.34285358,124.2,124.12,2.3790008]
[1769495813133,8.34285358,124.2,124.13,7.2594]
[1769495813329,9.6339008,124.21,124.13,2.3790008]
[1769495813722,9.6339008,124.21,124.14,2.3790008]
[1769495814933,9.6339008,124.21,124.14,9.6378008]
[1769495816135,2.3790008,124.2,124.14,7.2588]
[1769495822437,2.3790008,124.21,124.15,7.2583]
[1769495822642,2.3790008,124.22,124.15,9.6373008]
[1769495823932,9.6333008,124.22,124.15,9.6373008]
[1769495824438,2.3790008,124.24,124.17,2.3790008]
[1769495825734,2.3790008,124.23,124.16,9.6366008]
[1769495825940,9.6328008,124.23,124.16,9.6366008]
[1769495833146,9.6328008,124.23,124.16,7.2576]
[1769495835549,9.6328008,124.23,124.16,9.6366008]
[1769495840447,9.6328008,124.23,124.16,7.2576]
[1769495841152,9.6332008,124.22,124.15,7.2582]
[1769495846064,3.52500858,124.21,124.15,10.72510544]
[1769495848251,3.52500858,124.21,124.16,3.46690544]
[1769495850058,3.52500858,124.21,124.16,10.72460544]
[1769495851963,5.90474863,124.23,124.17,3.46690544]
[1769495852866,10.77870858,124.23,124.17,5.84664549]
[1769495853162,3.52500858,124.22,124.17,5.84664549]
[1769495853367,3.52500858,124.22,124.17,3.46690544]
[1769495861673,5.90474863,124.22,124.17,3.46690544]
[1769495865576,3.52500858,124.22,124.17,3.46690544]
[1769495865777,5.90474863,124.22,124.17,3.46690544]
[1769495866474,3.52500858,124.21,124.16,7.2577]